bitfinex-derivatives/quotes_BTCF0:USTF0_20241003
["timestamp","ask_amount","ask_price","bid_price","bid_amount"]
[1727973232918,0.10001974,60209.0,60208.0,0.27924838]
[1727973233218,0.3608,60211.0,60210.0,0.083046]
[1727973233516,0.3608,60211.0,60210.0,0.77211662]
[1727973233814,0.083034,60219.0,60218.0,0.083035]
[1727973234017,0.09999714,60219.0,60218.0,0.11366623]
[1727973235126,0.09999714,60219.0,60218.0,0.19770123]
[1727973235127,0.10999714,60219.0,60218.0,0.19770123]
[1727973235415,0.11999714,60219.0,60218.0,0.19870123]
[1727973235813,0.11999714,60219.0,60218.0,0.19670123]
[1727973235814,0.10399714,60219.0,60218.0,0.19670123]
[1727973236209,0.10399714,60219.0,60218.0,0.29585867]
[1727973236610,0.10399714,60219.0,60218.0,0.29558507]
[1727973236916,1.21069242,60219.0,60218.0,0.21255007]
[1727973237123,1.21069242,60219.0,60215.0,0.00627489]
[1727973237124,0.083036,60218.0,60215.0,0.00627489]
[1727973237410,0.083055,60204.0,60203.0,0.083055]
[1727973237614,1.583055,60204.0,60203.0,0.21823751]
[1727973238007,0.083055,60204.0,60203.0,0.21582672]
[1727973238610,0.083055,60204.0,60203.0,0.13277172]
[1727973238810,0.03745842,60219.0,60210.0,0.083044]
[1727973238811,0.083041,60215.0,60210.0,0.083044]
[1727973239008,0.1308004,60214.0,60204.0,0.26021889]
[1727973239209,0.3448739,60213.0,60212.0,0.083044]
[1727973239712,0.1308004,60213.0,60212.0,0.083044]
[1727973240608,0.12677052,60213.0,60212.0,0.083044]
[1727973241420,0.13077052,60213.0,60212.0,0.083044]
[1727973241720,0.083046,60210.0,60209.0,0.083047]
[1727973242021,0.20981652,60210.0,60209.0,0.083047]
[1727973242215,0.12677052,60210.0,60209.0,0.083047]
[1727973242822,0.64981652,60210.0,60209.0,0.005]
[1727973243018,0.64981652,60210.0,60194.0,0.083068]
[1727973243019,0.62635326,60210.0,60194.0,0.083068]
[1727973243210,0.083067,60196.0,60195.0,0.083067]
[1727973243417,0.08605306,60196.0,60195.0,0.083067]
[1727973243712,0.12677052,60196.0,60195.0,0.083067]
[1727973244117,0.44,60210.0,60195.0,0.083067]
[1727973244118,0.05958274,60209.0,60196.0,0.49836]
[1727973244423,0.05958274,60209.0,60195.0,0.6]
[1727973244424,0.02001766,60216.0,60209.0,0.004]
[1727973244620,0.00249206,60216.0,60215.0,0.083039]
[1727973244919,0.00249206,60216.0,60215.0,0.04845831]
[1727973244920,0.0620706,60216.0,60215.0,0.04845831]
[1727973245222,0.00249206,60216.0,60215.0,0.083039]
[1727973245609,0.00349206,60216.0,60215.0,0.083039]
[1727973246124,0.01678821,60223.0,60219.0,0.083034]
[1727973247426,0.3608,60232.0,60224.0,0.083027]
[1727973247721,0.3608,60239.0,60234.0,0.083013]
[1727973248121,0.3608,60239.0,60238.0,0.083008]
[1727973248710,0.083009,60237.0,60234.0,0.14914046]
[1727973249017,0.3608,60239.0,60238.0,0.083008]
[1727973249217,0.3608,60244.0,60238.0,0.083008]
[1727973249417,0.3608,60244.0,60243.0,0.083001]
[1727973249617,0.083004,60241.0,60239.0,0.06612846]
[1727973249821,0.3608,60244.0,60234.0,0.002]
[1727973249822,0.8008,60244.0,60238.0,0.06612846]
[1727973250019,0.3608,60239.0,60236.0,0.06612846]
[1727973250320,0.3608,60239.0,60238.0,0.083008]
[1727973250510,0.3748,60239.0,60238.0,0.15013646]
[1727973250717,0.3748,60239.0,60238.0,0.084008]
[1727973251222,0.470806,60239.0,60238.0,0.001]
[1727973252018,0.471806,60239.0,60238.0,0.002]
[1727973252416,0.471806,60239.0,60238.0,0.085008]
[1727973252417,0.3888,60239.0,60238.0,0.085008]
[1727973252821,0.3888,60239.0,60238.0,0.002]
[1727973253129,0.471806,60239.0,60238.0,0.002]
[1727973253926,1.971806,60239.0,60238.0,0.002]
[1727973254121,2.00388322,60239.0,60238.0,0.00127825]
[1727973254426,2.04454888,60239.0,60238.0,0.00127825]
[1727973254629,2.00388322,60239.0,60238.0,0.00127825]
[1727973256223,1.92087722,60239.0,60238.0,0.08428625]
[1727973256532,0.50388322,60239.0,60238.0,0.00127825]
[1727973258223,0.028,60239.0,60238.0,0.08428625]
[1727973259021,0.911806,60239.0,60238.0,0.00127825]
[1727973259230,0.94387975,60239.0,60238.0,0.00127825]
[1727973259426,0.50387975,60239.0,60238.0,0.00127825]
[1727973259624,0.46153836,60239.0,60238.0,0.08428625]
[1727973259835,0.50387975,60239.0,60238.0,0.00127825]
[1727973260033,0.42087375,60239.0,60238.0,0.00127825]
[1727973260224,0.42087375,60239.0,60238.0,0.08428625]
[1727973261234,0.42087375,60239.0,60238.0,0.083008]
[1727973261235,0.57205413,60239.0,60238.0,0.083008]
[1727973262024,0.65506013,60239.0,60229.0,0.10713813]
[1727973262220,1.68325413,60238.0,60229.0,0.10713813]
[1727973262435,0.18325413,60237.0,60236.0,0.08301]
[1727973263032,0.18325413,60237.0,60236.0,0.58105]
[1727973263339,0.18325413,60237.0,60236.0,1.18105]
[1727973264034,0.19625413,60237.0,60236.0,1.22995]
[1727973264630,0.3608,60253.0,60252.0,0.082988]
[1727973265128,0.3608,60253.0,60248.0,0.082993]
[1727973265129,0.082989,60252.0,60248.0,0.082993]
[1727973265335,0.082989,60252.0,60241.0,0.29]
[1727973265531,0.082989,60252.0,60250.0,0.082991]
[1727973265836,0.08299,60251.0,60250.0,0.082991]
[1727973266133,0.3888,60253.0,60241.0,0.29]
[1727973266336,0.3888,60253.0,60252.0,0.082988]
[1727973266337,0.471787,60253.0,60252.0,0.082988]
[1727973266835,0.457787,60253.0,60252.0,0.082988]
[1727973267031,0.08299,60251.0,60250.0,0.001]
[1727973267335,0.08299,60251.0,60250.0,0.083991]
[1727973267523,0.08299,60251.0,60250.0,0.082991]
[1727973267729,0.1425319,60251.0,60250.0,0.05919271]
[1727973267932,0.0595419,60251.0,60250.0,0.05919271]
[1727973268134,0.005,60252.0,60251.0,0.08299]
[1727973268731,0.007,60253.0,60252.0,0.082988]
[1727973269128,0.007,60253.0,60249.0,0.27325122]
[1727973269433,0.007,60253.0,60252.0,0.082988]
[1727973269738,0.01685045,60257.0,60256.0,0.082983]
[1727973269933,0.082978,60260.0,60252.0,0.082988]
[1727973270237,0.082978,60260.0,60259.0,0.082979]
[1727973270532,0.3608,60261.0,60259.0,0.082979]
[1727973270533,0.3608,60261.0,60260.0,0.082977]
[1727973270931,0.082977,60260.0,60252.0,0.0502]
[1727973271133,0.082986,60254.0,60252.0,0.001]
[1727973271339,0.29,60256.0,60242.0,0.3608]
[1727973271634,0.37826461,60261.0,60240.0,0.083005]
[1727973271635,0.3608,60243.0,60240.0,0.083005]
[1727973271830,0.083004,60241.0,60240.0,0.083005]
[1727973272030,0.3608,60243.0,60242.0,0.083002]
[1727973272739,0.3608,60243.0,60242.0,0.087002]
[1727973272940,0.29,60255.0,60242.0,0.087002]
[1727973272941,0.08299,60252.0,60242.0,0.377002]
[1727973273233,0.443785,60255.0,60253.0,0.082987]
[1727973273437,0.37826461,60255.0,60242.0,0.294]
[1727973273629,0.082991,60251.0,60248.0,0.082993]
[1727973273829,0.082993,60249.0,60247.0,0.082994]
[1727973274029,0.082993,60249.0,60248.0,0.082994]
[1727973274935,0.37826461,60255.0,60242.0,0.007]
[1727973275129,0.083001,60243.0,60242.0,0.007]
[1727973275332,0.3608,60245.0,60244.0,0.082999]
[1727973275530,0.3608,60266.0,60246.0,0.082996]
[1727973275728,0.3608,60266.0,60260.0,0.29]
[1727973275729,0.082976,60262.0,60260.0,0.29]
[1727973275934,0.443769,60266.0,60263.0,0.082972]
[1727973276133,0.32797923,60265.0,60247.0,0.0503]
[1727973276343,0.32797923,60264.0,60253.0,0.0503]
[1727973276642,0.3608,60266.0,60257.0,0.29]
[1727973276643,0.32797923,60263.0,60257.0,0.29]
[1727973276840,0.32797923,60262.0,60252.0,0.29]
[1727973277042,0.3608,60254.0,60246.0,0.19027396]
[1727973277237,0.3608,60254.0,60237.0,0.083008]
[1727973277238,0.29591951,60253.0,60240.0,0.083004]
[1727973277435,0.3469186,60242.0,60241.0,0.083003]
[1727973277632,0.56614366,60242.0,60241.0,0.083003]
[1727973278430,0.56614366,60242.0,60239.0,0.44]
[1727973278642,0.21922506,60241.0,60233.0,0.44]
[1727973278843,0.21922506,60240.0,60239.0,0.083006]
[1727973279343,0.15111421,60240.0,60239.0,1.181006]
[1727973279547,0.21922506,60240.0,60239.0,1.195006]
[1727973279731,0.15111421,60240.0,60239.0,0.097006]
[1727973279936,0.15111421,60240.0,60239.0,0.609006]
[1727973280136,0.21922506,60240.0,60239.0,0.097006]
[1727973280441,0.21922506,60240.0,60239.0,0.111006]
[1727973280949,0.29591951,60240.0,60239.0,0.00255475]
[1727973281135,0.29591951,60240.0,60239.0,0.08556075]
[1727973281940,0.30223006,60240.0,60239.0,0.00255475]
[1727973282142,0.30223006,60240.0,60233.0,0.13139439]
[1727973282354,0.084005,60240.0,60239.0,0.014]
[1727973282546,0.6641199,60240.0,60239.0,0.014]
[1727973282746,0.6641199,60240.0,60226.0,0.00249055]
[1727973282747,1.6791149,60240.0,60226.0,0.00249055]
[1727973283048,0.2626557,60230.0,60229.0,0.083019]
[1727973283245,0.44131062,60230.0,60229.0,0.083019]
[1727973283752,0.26167392,60230.0,60229.0,0.083019]
[1727973283935,0.17865492,60230.0,60229.0,0.083019]
[1727973284141,0.2626557,60231.0,60230.0,0.083019]
[1727973284341,0.3456727,60231.0,60230.0,0.083019]
[1727973284542,0.083017,60231.0,60230.0,0.083019]
[1727973285753,0.08302,60229.0,60225.0,0.06605229]
[1727973286057,0.083023,60228.0,60227.0,0.083023]
[1727973286245,0.001,60231.0,60229.0,0.083019]
[1727973286451,0.083019,60230.0,60229.0,0.083019]
[1727973286763,0.083019,60230.0,60224.0,0.44]
[1727973286764,0.083024,60227.0,60226.0,0.083024]
[1727973287548,0.002,60231.0,60224.0,0.44]
[1727973287549,0.08302,60229.0,60228.0,0.08302]
[1727973287745,0.08302,60229.0,60224.0,0.44]
[1727973287746,0.085018,60231.0,60229.0,0.08302]
[1727973287947,0.083019,60230.0,60229.0,0.08302]
[1727973288851,0.083019,60230.0,60229.0,0.08402]
[1727973289353,0.083023,60228.0,60224.0,0.44]
[1727973290552,0.003,60230.0,60224.0,0.44]
[1727973290755,0.003,60230.0,60229.0,0.08302]
[1727973291256,0.05397391,60230.0,60229.0,0.08302]
[1727973291557,0.05097391,60230.0,60229.0,0.08302]
[1727973291751,0.05097391,60230.0,60224.0,0.441]
[1727973291947,0.083023,60228.0,60227.0,0.083022]
[1727973292256,0.17566581,60228.0,60227.0,0.083022]
[1727973292653,0.17466581,60228.0,60227.0,0.083022]
[1727973293260,0.17766581,60228.0,60227.0,0.083022]
[1727973293552,0.09464281,60228.0,60227.0,0.083022]
[1727973293859,0.09364281,60228.0,60227.0,0.004]
[1727973294260,0.083002,60243.0,60227.0,0.004]
[1727973294261,0.05956261,60239.0,60228.0,0.581142]
[1727973294565,0.082996,60247.0,60239.0,0.083006]
[1727973294747,0.40145726,60240.0,60239.0,0.083006]
[1727973295153,0.3608,60240.0,60239.0,0.083006]
[1727973295752,0.3608,60240.0,60239.0,0.084006]
[1727973295753,0.3618,60240.0,60239.0,0.084006]
[1727973295957,0.3618,60240.0,60239.0,0.091006]
[1727973296259,0.3628,60240.0,60239.0,0.091006]
[1727973297058,0.002,60240.0,60239.0,0.091006]
[1727973297257,0.3608,60251.0,60250.0,0.082991]
[1727973297461,0.3608,60251.0,60250.0,0.522991]
[1727973298257,0.420342,60251.0,60250.0,0.522991]
[1727973298458,0.420342,60251.0,60247.0,0.082995]
[1727973298459,0.082995,60248.0,60247.0,0.082995]
[1727973298657,0.082995,60248.0,60239.0,0.453]
[1727973298658,0.059542,60250.0,60248.0,0.082993]
[1727973298865,0.082993,60249.0,60248.0,0.082994]
[1727973299053,0.142535,60249.0,60248.0,0.082994]
[1727973299257,0.082993,60249.0,60248.0,0.082994]
[1727973299458,0.44379,60251.0,60250.0,0.001]
[1727973299857,0.44379,60251.0,60250.0,0.083991]
[1727973300054,0.44379,60251.0,60250.0,0.082991]
[1727973300468,0.3608,60251.0,60248.0,0.293]
[1727973300669,0.3608,60251.0,60250.0,0.082991]
[1727973300872,0.44379,60251.0,60250.0,0.082991]
[1727973301170,0.3608,60251.0,60250.0,0.082991]
[1727973301359,0.3608,60267.0,60266.0,0.082969]
[1727973302367,0.3608,60274.0,60262.0,0.29]
[1727973302368,0.3608,60274.0,60273.0,0.08296]
[1727973302563,0.16418788,60285.0,60273.0,0.08296]
[1727973302564,0.16418788,60285.0,60273.0,0.6508]
[1727973302759,0.16418788,60285.0,60283.0,0.372945]
[1727973302760,0.01716993,60285.0,60283.0,0.372945]
[1727973302956,0.0483,60288.0,60283.0,0.29]
[1727973303968,0.0483,60288.0,60286.0,0.08294]
[1727973304465,0.0483,60288.0,60287.0,0.08294]
[1727973305369,0.0763,60288.0,60287.0,0.08294]
[1727973306172,0.4167282,60288.0,60287.0,0.001]
[1727973306475,0.4167282,60288.0,60287.0,0.08380576]
[1727973306476,0.51913554,60288.0,60287.0,0.08380576]
[1727973307168,0.51913554,60288.0,60285.0,0.02515129]
[1727973307373,0.44283554,60287.0,60285.0,0.02515129]
[1727973307669,0.44283554,60286.0,60285.0,0.10809429]
[1727973307865,0.76503252,60286.0,60285.0,0.10809429]
[1727973308064,0.76503252,60286.0,60285.0,0.082943]
[1727973308258,0.76503252,60286.0,60277.0,0.1563596]
[1727973308461,0.3404272,60285.0,60284.0,0.082944]
[1727973309173,0.28950341,60285.0,60278.0,0.082952]
[1727973309375,0.28950341,60284.0,60278.0,0.082952]
[1727973309562,0.28950341,60283.0,60278.0,0.082952]
[1727973309763,0.20425692,60282.0,60277.0,0.0167706]
[1727973309970,0.28950283,60281.0,60280.0,0.08295]
[1727973310874,0.12759049,60281.0,60280.0,0.08295]
[1727973311082,0.28950283,60281.0,60280.0,0.08295]
[1727973311581,0.29350283,60281.0,60280.0,0.08295]
[1727973311769,0.29850283,60281.0,60280.0,0.08295]
[1727973312277,0.21325634,60281.0,60273.0,0.37789165]
[1727973312576,0.34203955,60279.0,60267.0,0.29]
[1727973312871,0.34203955,60279.0,60272.0,0.082961]
[1727973312872,0.29,60273.0,60272.0,0.082961]
[1727973313183,0.28950283,60273.0,60272.0,0.3608]
[1727973313368,0.28950283,60273.0,60272.0,0.733761]
[1727973313773,0.20425634,60273.0,60272.0,0.733761]
[1727973313966,0.20425634,60273.0,60272.0,1.333761]
[1727973314274,0.34203955,60279.0,60278.0,0.082953]
[1727973314480,0.004,60281.0,60279.0,0.082951]
[1727973314662,0.082943,60285.0,60279.0,0.082951]
[1727973314974,1.58434401,60284.0,60279.0,0.082951]
[1727973315168,1.582944,60284.0,60279.0,0.082951]
[1727973315473,1.5,60284.0,60272.0,0.3608]
[1727973315666,0.004,60281.0,60272.0,0.3608]
[1727973315972,0.086949,60281.0,60277.0,0.082954]
[1727973316271,0.086949,60281.0,60272.0,0.6508]
[1727973316272,0.004,60281.0,60272.0,0.6508]
[1727973316461,0.004,60281.0,60280.0,0.08295]
[1727973317064,0.007,60284.0,60282.0,0.082946]
[1727973317976,0.003,60284.0,60280.0,0.003]
[1727973318169,0.003,60284.0,60283.0,0.082946]
[1727973318476,0.082949,60281.0,60280.0,0.003]
[1727973318769,0.083949,60281.0,60280.0,0.08295]
[1727973318977,0.372945,60284.0,60280.0,0.08295]
[1727973319176,0.05288907,60287.0,60280.0,0.002]
[1727973319471,0.00248907,60287.0,60286.0,0.082942]
[1727973321175,0.0483,60288.0,60286.0,0.372942]
[1727973321376,0.443729,60296.0,60286.0,0.29]
[1727973321575,0.443729,60296.0,60295.0,0.082929]
[1727973322171,0.082932,60293.0,60292.0,0.082932]
[1727973322370,0.004,60288.0,60287.0,0.08294]
[1727973322672,0.004,60288.0,60282.0,0.00088]
[1727973322673,0.082943,60286.0,60282.0,0.00088]
[1727973322976,0.131644,60285.0,60283.0,0.082945]
[1727973323178,0.0487,60285.0,60284.0,0.082944]
[1727973323376,0.004,60288.0,60287.0,0.08294]
[1727973323571,0.004,60288.0,60276.0,0.39014351]
[1727973323772,0.004,60288.0,60287.0,0.08294]
[1727973324081,0.37771042,60289.0,60288.0,0.082939]
[1727973324289,0.3608,60289.0,60288.0,0.082939]
[1727973324480,0.082936,60290.0,60289.0,0.082938]
[1727973325582,0.089936,60290.0,60289.0,0.082938]
[1727973325775,0.096936,60290.0,60289.0,0.083938]
[1727973326477,0.014,60290.0,60289.0,0.083938]
[1727973326673,0.014,60290.0,60289.0,0.001]
[1727973326878,0.014,60290.0,60281.0,0.00205]
[1727973326879,0.3748,60290.0,60281.0,0.00205]
[1727973327082,0.29,60286.0,60281.0,0.00205]
[1727973327273,0.082942,60286.0,60285.0,0.082943]
[1727973327885,0.082942,60286.0,60281.0,0.00205]
[1727973328078,0.082947,60283.0,60282.0,0.082946]
[1727973328990,0.048,60294.0,60282.0,0.082946]
[1727973328991,0.3608,60311.0,60282.0,1.3216]
[1727973329281,0.326,60381.0,60282.0,1.3216]
[1727973329282,0.05948468,60310.0,60309.0,0.08291]
[1727973329479,0.05948468,60310.0,60309.0,0.07461901]
[1727973329788,0.12756895,60310.0,60309.0,0.07461901]
[1727973330086,0.12756895,60310.0,60305.0,0.3608]
[1727973330087,0.12756895,60310.0,60305.0,0.443714]
[1727973330382,0.05948468,60309.0,60307.0,0.082913]
[1727973330587,0.05948468,60308.0,60307.0,0.082913]
[1727973331174,0.08288,60331.0,60309.0,0.08291]
[1727973331475,0.00132,60337.0,60316.0,0.29]
[1727973331674,0.00132,60337.0,60312.0,0.082905]
[1727973331675,0.1484,60339.0,60330.0,0.29]
[1727973331977,0.082879,60332.0,60317.0,0.00248662]
[1727973332178,0.082879,60332.0,60322.0,0.082892]
[1727973332481,0.16518866,60339.0,60321.0,0.29]
[1727973332981,0.24805766,60339.0,60327.0,0.082885]
[1727973333286,0.24805766,60339.0,60331.0,0.082879]
[1727973333481,0.002,60337.0,60331.0,0.082879]
[1727973334076,0.002,60337.0,60327.0,0.082884]
[1727973334290,0.004,60332.0,60326.0,0.29]
[1727973334476,0.05946329,60331.0,60327.0,0.001]
[1727973334673,0.05946269,60330.0,60327.0,0.083885]
[1727973334877,0.29,60329.0,60317.0,0.00248662]
[1727973335078,0.082891,60324.0,60318.0,0.082897]
[1727973335281,0.29,60329.0,60318.0,0.082897]
[1727973335282,0.10786269,60323.0,60318.0,0.082897]
[1727973335482,0.05946269,60322.0,60317.0,0.00248662]
[1727973335783,6.9e-07,60327.0,60320.0,0.082895]
[1727973335985,0.0484,60343.0,60336.0,0.082873]
[1727973336182,0.0484,60343.0,60336.0,0.372873]
[1727973336385,0.0484,60343.0,60342.0,0.082865]
[1727973336688,0.013,60337.0,60336.0,0.082873]
[1727973336891,0.0468,60346.0,60343.0,0.082863]
[1727973337076,0.0468,60346.0,60343.0,0.13220814]
[1727973337394,0.0468,60346.0,60343.0,0.082863]
[1727973338394,0.01648683,60344.0,60343.0,0.083863]
[1727973339186,0.10234883,60344.0,60343.0,0.002]
[1727973339388,0.01948683,60344.0,60343.0,0.002]
[1727973339590,0.01948683,60344.0,60343.0,0.084863]
[1727973340284,0.01948683,60344.0,60343.0,0.002]
[1727973340685,0.10234883,60344.0,60343.0,0.002]
[1727973341682,0.10234883,60344.0,60335.0,0.04934514]
[1727973341683,1.19950883,60344.0,60335.0,0.04934514]
[1727973341994,0.082872,60337.0,60336.0,0.04934514]
[1727973342384,0.4972,60337.0,60333.0,0.04934514]
[1727973342584,0.4972,60337.0,60323.0,0.45975802]
[1727973342585,0.082878,60332.0,60331.0,0.04934514]
[1727973342789,0.082878,60332.0,60328.0,0.04918722]
[1727973342988,0.3608,60329.0,60325.0,0.04918722]
[1727973343292,0.3608,60329.0,60322.0,0.04918722]
[1727973343293,0.08289,60324.0,60322.0,0.04918722]
[1727973343482,1.5,60328.0,60322.0,0.04918722]
[1727973343682,0.082889,60324.0,60322.0,0.04918722]
[1727973344092,0.082889,60324.0,60321.0,0.04918722]
[1727973344292,1.5,60328.0,60315.0,0.082901]
[1727973344293,0.082899,60318.0,60315.0,0.082901]
[1727973345882,0.082899,60317.0,60315.0,0.084901]
[1727973346079,0.0475,60326.0,60315.0,0.002]
[1727973346282,0.0829,60316.0,60315.0,0.002]
[1727973346490,0.0829,60316.0,60315.0,0.005]
[1727973347389,0.0829,60316.0,60315.0,0.004]
[1727973347597,0.0829,60316.0,60315.0,0.003]
[1727973348094,0.0849,60316.0,60315.0,0.002]
[1727973348486,0.0829,60316.0,60315.0,0.002]
[1727973348687,0.0849,60316.0,60315.0,0.002]
[1727973348895,0.082916,60305.0,60302.0,0.08540629]
[1727973349082,0.082916,60305.0,60302.0,0.00248729]
[1727973349491,0.0979,60315.0,60302.0,0.00248729]
[1727973349692,0.082909,60310.0,60306.0,0.082913]
[1727973350189,0.082912,60308.0,60306.0,0.082913]
[1727973350886,0.0979,60315.0,60303.0,0.44]
[1727973351093,0.0979,60315.0,60302.0,0.008]
[1727973351391,0.0979,60315.0,60300.0,0.3608]
[1727973351392,0.082913,60307.0,60306.0,0.007]
[1727973351594,0.082904,60314.0,60306.0,0.007]
[1727973351595,0.08291,60310.0,60306.0,0.007]
[1727973351797,0.082905,60313.0,60312.0,0.082906]
[1727973352194,0.44,60323.0,60306.0,0.004]
[1727973352596,0.082913,60307.0,60306.0,0.086914]
[1727973352895,0.082913,60307.0,60306.0,0.089914]
[1727973353097,0.37826372,60319.0,60306.0,0.007]
[1727973353290,0.37826372,60319.0,60309.0,0.08291]
[1727973353291,0.46116172,60319.0,60309.0,0.08291]
[1727973353600,0.082909,60310.0,60309.0,0.08291]
[1727973353897,0.001,60315.0,60306.0,0.003]
[1727973354096,0.001,60315.0,60307.0,0.082912]
[1727973354293,0.082912,60308.0,60307.0,0.082912]
[1727973355502,0.082912,60308.0,60307.0,0.084912]
[1727973356090,0.082912,60308.0,60307.0,0.087912]
[1727973358197,0.01739213,60309.0,60308.0,0.082911]
[1727973358402,0.44,60317.0,60307.0,0.005]
[1727973358701,0.3608,60319.0,60307.0,0.005]
[1727973358902,0.082911,60308.0,60307.0,0.087913]
[1727973359393,0.082902,60315.0,60307.0,0.22734891]
[1727973359600,0.08291,60309.0,60308.0,0.20930189]
[1727973360097,0.082908,60312.0,60311.0,0.082907]
[1727973360402,0.082907,60311.0,60310.0,0.08247881]
[1727973360599,0.082907,60311.0,60310.0,0.12638893]
[1727973360993,0.082907,60311.0,60310.0,0.12638999]
[1727973361293,0.08291,60309.0,60308.0,0.003]
[1727973361694,0.08291,60309.0,60308.0,0.084911]
[1727973361895,0.08291,60309.0,60308.0,0.16738497]
[1727973362097,0.08291,60309.0,60308.0,0.29377654]
[1727973362302,0.08291,60309.0,60308.0,0.16538497]
[1727973362503,0.08291,60309.0,60308.0,0.082911]
[1727973362691,0.082911,60308.0,60307.0,0.08247397]
[1727973362893,0.082913,60307.0,60305.0,0.06596954]
[1727973363090,0.082914,60306.0,60305.0,0.06597084]
[1727973363298,0.082916,60305.0,60304.0,0.06597084]
[1727973363500,0.29,60307.0,60303.0,0.06597084]
[1727973363501,0.082917,60304.0,60303.0,0.06597084]
[1727973363693,0.082922,60300.0,60299.0,0.082923]
[1727973363890,0.082922,60300.0,60299.0,0.29178029]
[1727973364088,0.1534,60308.0,60304.0,0.082915]
[1727973364089,0.082917,60305.0,60304.0,0.082915]
[1727973364300,0.082917,60305.0,60304.0,0.087915]
[1727973364604,0.00136,60307.0,60306.0,0.082914]
[1727973364807,0.082902,60316.0,60313.0,0.082904]
[1727973365190,0.0512,60318.0,60312.0,0.0824279]
[1727973365390,0.134098,60318.0,60317.0,0.04945068]
[1727973365597,0.0829,60316.0,60315.0,0.06593399]
[1727973366409,0.11067978,60318.0,60312.0,0.082906]
[1727973367005,0.005,60316.0,60310.0,0.29]
[1727973367299,0.009,60316.0,60315.0,0.082902]
[1727973367705,0.004,60316.0,60315.0,0.082902]
[1727973368502,0.0829,60316.0,60315.0,0.082902]
[1727973368896,0.06147978,60318.0,60317.0,0.082899]
[1727973369308,0.05947978,60318.0,60317.0,0.082899]
[1727973369501,0.14237778,60318.0,60317.0,0.082899]
[1727973371204,0.14337778,60318.0,60317.0,0.082899]
[1727973371407,0.14337778,60318.0,60315.0,0.008]
[1727973371408,0.0829,60316.0,60315.0,0.008]
[1727973371625,0.08291,60309.0,60308.0,0.0001]
[1727973372107,0.08291,60309.0,60308.0,0.083011]
[1727973372902,0.08291,60309.0,60308.0,0.0041]
[1727973373403,0.08291,60309.0,60308.0,0.092011]
[1727973374110,0.09967711,60309.0,60308.0,0.0041]
[1727973374294,0.09967711,60309.0,60308.0,0.0031]
[1727973375506,0.09967711,60309.0,60308.0,0.086011]
[1727973376800,0.1477,60311.0,60308.0,0.0031]
[1727973376999,0.00128,60312.0,60308.0,0.0031]
[1727973377315,0.0829,60316.0,60315.0,0.082898]
[1727973378500,0.007,60316.0,60315.0,0.083898]
[1727973379409,0.0899,60316.0,60315.0,0.083898]
[1727973379905,0.0949,60316.0,60315.0,0.083898]
[1727973380908,0.0949,60316.0,60308.0,0.083011]
[1727973380909,0.08291,60309.0,60308.0,0.083011]
[1727973381097,0.082906,60313.0,60312.0,0.082902]
[1727973381415,0.094902,60316.0,60315.0,0.082902]
[1727973382106,0.082902,60316.0,60315.0,0.082902]
[1727973382616,0.05948193,60318.0,60317.0,0.082899]
[1727973382908,0.10026158,60326.0,60325.0,0.082887]
[1727973383109,0.082887,60326.0,60325.0,0.082887]
[1727973383417,0.09982914,60326.0,60325.0,0.082887]
[1727973383713,0.082892,60323.0,60322.0,0.082892]
[1727973384301,0.06728783,60327.0,60316.0,0.0829]
[1727973384505,0.082888,60325.0,60324.0,0.082889]
[1727973385503,0.082888,60325.0,60317.0,0.001]
[1727973385504,0.01748783,60327.0,60326.0,0.082887]
[1727973385710,0.06196941,60331.0,60330.0,0.082881]
[1727973385711,0.00248748,60331.0,60330.0,0.082881]
[1727973385907,0.108,60345.0,60344.0,0.082862]
[1727973386111,0.190861,60345.0,60344.0,0.082862]
[1727973386306,0.108,60345.0,60344.0,0.082862]
[1727973386630,0.190861,60345.0,60344.0,0.082862]
[1727973387616,0.082869,60339.0,60338.0,0.08287]
[1727973387804,0.12,60345.0,60331.0,0.29248626]
[1727973388010,0.082866,60342.0,60331.0,0.00248626]
[1727973388207,0.082873,60337.0,60336.0,0.082872]
[1727973388408,0.082877,60335.0,60334.0,0.082874]
[1727973388611,0.082878,60332.0,60331.0,0.00248626]
[1727973390019,0.083878,60332.0,60331.0,0.00248626]
[1727973390516,0.082896,60320.0,60319.0,0.082896]
[1727973390712,1.09824,60332.0,60318.0,0.3608]
[1727973390713,0.08288,60331.0,60318.0,0.3608]
[1727973390906,0.082889,60325.0,60318.0,0.3608]
[1727973391116,1.58289,60324.0,60323.0,0.08289]
[1727973391417,0.082885,60328.0,60327.0,0.082885]
[1727973391915,0.082895,60320.0,60319.0,0.01]
[1727973392111,0.082895,60320.0,60319.0,0.082896]
[1727973392817,0.08489,60324.0,60323.0,0.082891]
[1727973393115,0.002,60324.0,60323.0,0.082891]
[1727973393313,0.002,60324.0,60323.0,1.470211]
[1727973393617,0.002,60324.0,60323.0,1.831011]
[1727973394132,0.082881,60331.0,60330.0,0.082881]
[1727973394613,0.09976005,60331.0,60330.0,0.082881]
[1727973395519,0.11176005,60331.0,60330.0,0.083881]
[1727973395924,0.11176005,60331.0,60330.0,0.001]
[1727973396423,0.11076005,60331.0,60330.0,0.001]
[1727973396715,0.10376005,60331.0,60330.0,0.082881]
[1727973396923,0.01,60331.0,60330.0,0.083881]
[1727973397221,0.01,60331.0,60330.0,0.444681]
[1727973397419,0.007,60331.0,60330.0,0.443681]
[1727973397814,0.004,60331.0,60330.0,0.443681]
[1727973398015,0.007,60331.0,60330.0,0.444681]
[1727973398515,0.006,60331.0,60330.0,0.444681]
[1727973399624,0.002,60331.0,60330.0,0.443681]
[1727973400123,0.002,60331.0,60330.0,1.540961]